fUSD/lending_fUSD_20240707
["ID","MTS","AMOUNT","RATE_DAILY","PERIOD"]
[331395759,1720343432929,-250.0,0.00013055,2]
[331395760,1720343432940,-154.8448285,0.00013111,2]
[331395763,1720343432950,-178.05,0.00013211,2]
[331395766,1720343432959,-200.0,0.00013229,2]
[331395769,1720343432970,-350.44,0.00013328,2]
[331395770,1720343432980,-187.21,0.00013354,2]
[331395771,1720343432989,-430.89547468,0.00013472,2]
[331395772,1720343432999,-154.8448285,0.00013474,2]
[331395773,1720343433008,-5666.01653393,0.00013574,2]
[331395774,1720343433017,-3624.28224392,0.00013605,2]
[331395775,1720343433029,-610.32764956,0.00013605,2]
[331395776,1720343433040,-470.74208552,0.00013605,2]
[331395777,1720343433049,-211.254662,0.00013605,2]
[331395778,1720343433058,-331.305646,0.00013605,2]
[331395779,1720343433068,-5886.47,0.00013625,2]
[331395780,1720343433076,-4705.351979,0.00013775,2]
[331395781,1720343433086,-211.254662,0.00013775,2]
[331395782,1720343433095,-331.305646,0.00013775,2]
[331395783,1720343433103,-87.71656978,0.00013888,2]
[331395784,1720343433114,-266.53614722,0.00013888,2]
[331395936,1720343440695,-145.747283,0.00013888,2]
[331395938,1720343440705,-220.39,0.0001389,3]
[331395940,1720343440717,-642.47998076,0.000139,2]
[331395942,1720343440728,-728.35942077,0.000139,2]
[331395945,1720343440740,-2820.66603228,0.000139,2]
[331395947,1720343440752,-4122.20500826,0.000139,2]
[331395949,1720343440763,-1989.47898931,0.000139,2]
[331395951,1720343440775,-219.39718788,0.000139,2]
[331395953,1720343440785,-323.80502942,0.000139,2]
[331395955,1720343440795,-4705.351979,0.00013945,2]
[331395957,1720343440805,-211.254662,0.00013945,2]
[331395959,1720343440815,-331.305646,0.00013945,2]
[331395961,1720343440825,-626.0,0.00014,2]
[331395963,1720343440836,-9545.24452821,0.00014,2]
[331396022,1720343442105,-700.75770547,0.00014,2]
[331396024,1720343442117,-527.86805897,0.00014,2]
[331396025,1720343442129,-663.13575566,0.00014,2]
[331396026,1720343442141,-3030.48365196,0.00014,2]
[331396027,1720343442152,-38421.95795873,0.00014,2]
[331396028,1720343442164,-1001.30950324,0.00014,2]
[331396029,1720343442176,-12733.67562152,0.00014,2]
[331396030,1720343442188,-4302.89567398,0.00014,2]
[331396051,1720343444233,-657.39,0.00014,2]
[331396053,1720343444245,-3592.32883106,0.00014,2]
[331396142,1720343448488,-1079.31918,0.00014,2]
[331396144,1720343448501,-1956.22149311,0.00014,2]
[331396146,1720343448514,-3465.7968536,0.00014,2]
[331396148,1720343448526,-661.66608519,0.00014,2]
[331396151,1720343448539,-386.41956702,0.00014,2]
[331396153,1720343448551,-1027273.31213345,0.00014,2]
[331396155,1720343448562,-609259.07162993,0.00014,2]
[331396157,1720343448574,-342160.0,0.00014,2]
[331396160,1720343448587,-6149.12031243,0.00014,2]
[331396187,1720343448846,-50695.0984829,0.00014,2]
[331396189,1720343448856,-155.0,0.00014,2]
[331396191,1720343448866,-10426.0,0.00014,2]
[331396193,1720343448876,-28847.0,0.00014,2]
[331396195,1720343448886,-15601.0,0.00014,2]
[331396197,1720343448895,-11362.0,0.00014,2]
[331396199,1720343448905,-1000.0,0.00014,2]
[331396201,1720343448916,-2258.0,0.00014,2]
[331396203,1720343448926,-24905.0,0.00014,2]
[331396205,1720343448936,-3186.0,0.00014,2]
[331396207,1720343448946,-17844.86469518,0.00014,2]
[331396211,1720343448978,-681.22159998,0.00014,2]
[331396735,1720343577176,3222.62985001,0.00011199,2]
[331396736,1720343586628,8730.54019256,0.00011199,2]
[331396737,1720343598870,2738.14487436,0.00011199,2]
[331396738,1720343602753,9244.88765842,0.00011199,2]
[331396739,1720343616054,200.0,0.00025,60]
[331396740,1720343619464,20331.13311572,0.00011199,2]
[331396741,1720343619606,7556.18852005,0.00011199,2]
[331396743,1720343625709,290.05645915,0.00011199,2]
[331396744,1720343626911,1274.42646069,0.00011199,2]
[331396745,1720343641969,167.46,0.0001057,2]
[331396746,1720343650781,348.86325418,0.00011199,2]
[331396747,1720343651742,2718.91672621,0.00011199,2]
[331396748,1720343652268,956.26012045,0.00011199,2]
[331396749,1720343667838,983.0,0.00034122,30]
[331396750,1720343682399,202.25757491,0.00011199,2]
[331396751,1720343694354,475.87945847,0.00011199,2]
[331396753,1720343713854,157.070718,0.00025,60]
[331396754,1720343716460,157.070718,0.00025,60]
[331396755,1720343717818,155.0,0.00011199,2]
[331396756,1720343722885,157.070718,0.00025,61]
[331396757,1720343727619,157.070718,0.00025,61]
[331396758,1720343727885,157.070718,0.00025,62]
[331396759,1720343727975,157.070718,0.00025,62]
[331396760,1720343728649,157.070718,0.00025,63]
[331396761,1720343728723,157.070718,0.00025,63]
[331396762,1720343728791,7556.18852005,0.0001057,2]
[331396763,1720343728921,307.62565821,0.00011199,2]
[331396764,1720343732195,157.070718,0.00025,64]
[331396765,1720343740268,157.070718,0.00025,65]
[331396766,1720343740324,7556.18852005,0.00011199,2]
[331396767,1720343742417,155.0,0.00011199,2]
[331396768,1720343749279,157.070718,0.00025,64]
[331396769,1720343749670,157.070718,0.00025,65]
[331396770,1720343751062,516.0,0.00034121,30]
[331396772,1720343761303,157.070718,0.00025,67]
[331396773,1720343764466,157.070718,0.00025,67]
[331396774,1720343768401,157.070718,0.00025,68]
[331396776,1720343768566,157.070718,0.00025,68]
[331396777,1720343773869,157.070718,0.00025,69]
[331396778,1720343773989,157.070718,0.00025,69]
[331396779,1720343774173,234.90227309,0.00011199,2]
[331396780,1720343777891,157.070718,0.00025,70]
[331396781,1720343777962,157.070718,0.00025,70]
[331396782,1720343779746,157.070718,0.00025,71]
[331396783,1720343779822,155.0,0.00011199,2]
[331396784,1720343780469,157.070718,0.00025,71]
[331396785,1720343784570,157.070718,0.00025,72]
[331396786,1720343784710,157.070718,0.00025,72]
[331396788,1720343818508,157.070718,0.00025,74]
[331396789,1720343822220,157.070718,0.00025,74]
[331396790,1720343822516,157.070718,0.00025,75]
[331396791,1720343823325,157.070718,0.00025,75]
[331396792,1720343826415,157.070718,0.00025,76]
[331396793,1720343827242,157.070718,0.00025,76]
[331396795,1720343830738,157.070718,0.00025,77]
[331396796,1720343831387,157.070718,0.00025,77]
[331396797,1720343862806,186.0,0.00034121,30]
[331396798,1720343882123,225.70812466,0.00011199,2]
[331396800,1720343891611,24725.94279289,0.00011199,2]
[331396803,1720343926868,19114.99931929,0.00011199,2]
[331396804,1720343927524,472.94,0.00010615,2]
[331396805,1720343949080,2259.49891712,0.00011199,2]
[331396806,1720343952357,7556.18852005,0.00011199,2]
[331396807,1720343954513,157.070718,0.00027,120]
[331396808,1720343962487,7556.18852005,0.00011199,2]
[331396809,1720343962628,157.070718,0.00027,120]
[331396810,1720343970347,157.070718,0.00027,120]
[331396811,1720343974317,157.070718,0.00027,120]
[331396812,1720344030727,35599.55324681,0.00011199,2]
[331396813,1720344045702,300.0,0.00025,60]
[331396814,1720344048411,162.53,9.909e-05,2]
[331396815,1720344065623,19629.04410476,0.00011199,2]
[331396816,1720344147439,7097.02061197,0.00011199,2]
[331396817,1720344194843,167.46,9.98e-05,2]
[331396818,1720344195071,167.46,0.00011643,2]
[331396819,1720344264874,983.0,0.00034121,30]
[331396820,1720344318199,2568.05938803,0.00011199,2]
[331396821,1720344318228,4558.02388576,0.00011199,2]
[331396822,1720344332052,200.070718,0.00025,60]
[331396823,1720344349603,5441.97611424,0.00011199,2]
[331396824,1720344349653,10000.0,0.00011199,2]
[331396825,1720344349681,4187.06799052,0.00011199,2]
[331396826,1720344353662,266.0,0.0003412,30]
[331396827,1720344409759,5812.93200948,0.00011199,2]
[331396828,1720344409783,73.07135071,0.00011199,2]
[331396829,1720344475363,449.29,0.00010417,2]
[331396830,1720344496103,473.55314035,0.00011199,2]
[331396831,1720344529198,397.42156081,0.00011199,2]
[331396835,1720344594979,433.27749902,0.00011199,2]
[331396836,1720344605837,284.07218284,0.00011199,2]
[331396837,1720344615926,155.20586533,0.00011199,2]
[331396840,1720344632056,-338.373512,0.00012142,2]
[331396841,1720344632066,-161.626488,0.00012203,2]
[331396842,1720344632079,-38.373512,0.00012203,2]
[331396843,1720344632088,-160.27755312,0.00012209,2]
[331396844,1720344632099,-1612.02,0.00012289,2]
[331396845,1720344632109,-2209.85,0.00012309,2]
[331396846,1720344632119,-150.0,0.00012319,2]
[331396847,1720344632129,-300.0,0.00012323,2]
[331396848,1720344632139,-23890.0,0.00012324,2]
[331396849,1720344632150,-250.0,0.00012403,2]
[331396850,1720344632159,-192.06,0.00012403,2]
[331396851,1720344632171,-178.05,0.00012407,2]
[331396852,1720344632180,-360.0,0.00012409,2]
[331396853,1720344632190,-640.0,0.0001241,2]
[331396854,1720344632200,-152.35,0.00012442,2]
[331396855,1720344632210,-167.59,0.00012459,2]
[331396856,1720344632220,-187.21,0.00012474,2]
[331396857,1720344632230,-250.0,0.00012474,2]
[331396858,1720344632239,-449.29,0.00012681,2]
[331396859,1720344632250,-166.47,0.00012696,2]
[331396860,1720344632262,-338.27,0.00013,2]
[331396861,1720344632276,-1000.52,0.00013,2]
[331396862,1720344632286,-1084.62,0.00013,2]
[331396863,1720344632299,-160.27755312,0.00013005,2]
[331396864,1720344632310,-5200.7983,0.00013028,2]
[331396866,1720344632320,-30000.0,0.00013128,2]
[331396867,1720344632330,-1427.42294471,0.00013128,2]
[331396868,1720344632342,-328.64556,0.00013128,2]
[331396869,1720344632354,-758.46063196,0.00013128,2]
[331396870,1720344632366,-715.22272661,0.00013128,2]
[331396871,1720344632378,-1171.32115809,0.00013128,2]
[331396872,1720344632469,-985.42,0.00013128,2]
[331396873,1720344632482,-2731.28504997,0.00013128,2]
[331396874,1720344632494,-873.0,0.00013128,2]
[331396875,1720344632505,-577.76847127,0.00013128,2]
[331396876,1720344632517,-26031.0067042,0.00013128,2]
[331396877,1720344632527,-4743.59343329,0.000133,2]
[331396878,1720344632536,-167.46,0.00013306,2]
[331396879,1720344632545,-528.73,0.0001337,2]
[331396880,1720344632558,-21062.0,0.00013448,2]
[331396881,1720344632567,-1399.54620502,0.00013516,2]
[331396882,1720344632577,-420.0,0.00013524,2]
[331396883,1720344632587,-593.20627358,0.00013543,2]
[331396884,1720344632597,-365.26443049,0.00013543,2]
[331396885,1720344632607,-395.30040255,0.00013543,2]
[331396886,1720344632616,-179.915158,0.00013605,2]
[331396887,1720344632626,-180.88205,0.00013605,2]
[331396888,1720344632635,-178.336139,0.00013605,2]
[331396889,1720344632645,-183.894082,0.00013605,2]
[331396890,1720344632655,-715.020188,0.00013605,2]
[331396891,1720344632665,-158.016445,0.00013605,2]
[331396892,1720344632674,-495.672091,0.00013605,2]
[331396893,1720344632684,-2749.043221,0.00013605,2]
[331396894,1720344632693,-200.799292,0.00013605,2]
[331396895,1720344632703,-2518.528159,0.00013605,2]
[331396896,1720344632712,-182.794539,0.00013605,2]
[331396897,1720344632722,-2166.199656,0.00013605,2]
[331396898,1720344632731,-183.327672,0.00013605,2]
[331396899,1720344632741,-177.768501,0.00013605,2]
[331396900,1720344632750,-201.65824,0.00013605,2]
[331396901,1720344632760,-192.977459,0.00013605,2]
[331396902,1720344632769,-203.282009,0.00013605,2]
[331396903,1720344632779,-12016.91284,0.00013605,2]
[331396904,1720344632788,-250.0,0.00013699,2]
[331396905,1720344632797,-545.47,0.00013699,2]
[331396906,1720344632811,-1951.37,0.00013699,2]
[331396907,1720344632821,-544.95,0.00013699,2]
[331396908,1720344632830,-38257.0,0.0001372,2]
[331396909,1720344632840,-715.020188,0.00013775,2]
[331396910,1720344632849,-495.672091,0.00013775,2]
[331396911,1720344632858,-2749.043221,0.00013775,2]
[331396912,1720344632867,-2518.528159,0.00013775,2]
[331396913,1720344632877,-2166.199656,0.00013775,2]
[331396914,1720344632888,-201.65824,0.00013775,2]
[331396915,1720344632897,-12016.91284,0.00013775,2]
[331396916,1720344632907,-2366.5058,0.000138,2]
[331396917,1720344632916,-160.27755312,0.000138,2]
[331396918,1720344632925,-292.57856873,0.00013802,2]
[331396919,1720344632935,-200.51542259,0.00013802,2]
[331396920,1720344632944,-182.794539,0.00013831,2]
[331396921,1720344632953,-177.768501,0.00013831,2]
[331396922,1720344632963,-3000.0,0.0001386,2]
[331396923,1720344632972,-500.0,0.00013888,2]
[331396924,1720344632981,-464.22,0.0001389,3]
[331396925,1720344632990,-49687.4823,0.000139,2]
[331396926,1720344633004,-1007.8326,0.000139,2]
[331396927,1720344633014,-400.1615,0.000139,2]
[331396928,1720344633023,-169.41225716,0.000139,2]
[331396929,1720344633033,-158.016445,0.00013945,2]
[331396930,1720344633044,-715.020188,0.00013945,2]
[331396931,1720344633053,-495.672091,0.00013945,2]
[331396932,1720344633064,-1229.94619362,0.00013945,2]
[331396933,1720344633078,-1519.09702738,0.00013945,2]
[331396934,1720344633087,-2518.528159,0.00013945,2]
[331396935,1720344633097,-2166.199656,0.00013945,2]
[331396936,1720344633107,-201.65824,0.00013945,2]
[331396937,1720344633117,-12016.91284,0.00013945,2]
[331396938,1720344633126,-360.0,0.00013961,2]
[331396939,1720344633136,-640.0,0.00013961,2]
[331396940,1720344633595,-155.0,0.00013989,2]
[331396941,1720344633622,-730.03551561,0.00013989,2]
[331396942,1720344633632,-155.1322219,0.00013989,2]
[331396943,1720344633641,-160.0,0.00013991,2]
[331396944,1720344633650,-500.0,0.00013999,2]
[331396945,1720344633659,-500.0,0.00013999,2]
[331396946,1720344633668,-500.0,0.00013999,2]
[331396947,1720344633679,-500.0,0.00013999,2]
[331396948,1720344633688,-300.0,0.00013999,2]
[331396949,1720344633697,-478.94522347,0.00013999,2]
[331396950,1720344633706,-500.0,0.00013999,2]
[331396951,1720344633716,-500.0,0.00013999,2]
[331396952,1720344633726,-500.0,0.00013999,2]
[331396953,1720344633736,-500.0,0.00013999,2]
[331396954,1720344633745,-500.0,0.00013999,2]
[331396955,1720344633755,-500.0,0.00013999,2]
[331396956,1720344633764,-500.0,0.00013999,2]
[331396957,1720344633773,-338.62866964,0.00013999,2]
[331396958,1720344633783,-500.0,0.00013999,2]
[331396959,1720344633792,-261.77405619,0.00013999,2]
[331396960,1720344633804,-500.0,0.00013999,2]
[331396961,1720344633814,-500.0,0.00013999,2]
[331396962,1720344633823,-500.0,0.00013999,2]
[331396963,1720344633836,-500.0,0.00013999,2]
[331396964,1720344633845,-500.0,0.00013999,2]
[331396965,1720344633855,-500.0,0.00013999,2]
[331396966,1720344633865,-256.61513988,0.00013999,2]
[331396967,1720344633876,-500.0,0.00013999,2]
[331396968,1720344633887,-500.0,0.00013999,2]
[331396969,1720344633897,-500.0,0.00013999,2]
[331396970,1720344633907,-500.0,0.00013999,2]
[331396971,1720344633917,-500.0,0.00013999,2]
[331396972,1720344633926,-500.0,0.00013999,2]
[331396973,1720344633936,-500.0,0.00013999,2]
[331396974,1720344633946,-500.0,0.00013999,2]
[331396975,1720344633956,-500.0,0.00013999,2]
[331396976,1720344633965,-500.0,0.00013999,2]
[331396977,1720344633975,-500.0,0.00013999,2]
[331396978,1720344633984,-500.0,0.00013999,2]
[331396979,1720344633995,-500.0,0.00013999,2]
[331396980,1720344634010,-283.86286696,0.00013999,2]
[331396981,1720344634020,-500.0,0.00013999,2]
[331396982,1720344634030,-500.0,0.00013999,2]
[331396983,1720344634040,-500.0,0.00013999,2]
[331396984,1720344634053,-500.0,0.00013999,2]
[331396985,1720344634064,-500.0,0.00013999,2]
[331396986,1720344634075,-300.0,0.00013999,5]
[331396987,1720344634086,-346.90762572,0.00013999,2]
[331396988,1720344634096,-691.14739766,0.00013999,2]
[331396989,1720344634106,-1630.1845532,0.00013999,2]
[331396990,1720344634117,-528.99378221,0.00013999,2]
[331396991,1720344634128,-2309.78950855,0.00014,2]
[331396992,1720344635542,-1312.35807267,0.00014,2]
[331396995,1720344638065,-2709.48663959,0.00012309,2]
[331396997,1720344638080,-717.19460741,0.00012309,2]
[331396998,1720344638091,-300.27832461,0.00013574,2]
[331396999,1720344638102,-1665.0,0.0001372,2]
[331397000,1720344638112,-813.0,0.0001372,2]
[331397001,1720344638122,-173.13664548,0.00013899,2]
[331397002,1720344638131,-4823.05490209,0.00014,2]
[331397003,1720344638144,-1213.33212,0.00014,2]
[331397004,1720344638156,-600.0,0.00014,2]
[331397005,1720344638169,-3743.91511063,0.00014,2]
[331397006,1720344638181,-419511.54861177,0.00014,2]
[331397007,1720344638192,-1202.0,0.00014,2]
[331397008,1720344638202,-160.0,0.00014,2]
[331397009,1720344638211,-630.0,0.00014,2]
[331397010,1720344638222,-16000.0,0.00014,2]
[331397011,1720344638232,-2000.0,0.00014,2]
[331397012,1720344638243,-151.0,0.00014,2]
[331397013,1720344638256,-151.0,0.00014,2]
[331397014,1720344638266,-151.0,0.00014,2]
[331397015,1720344638275,-165.48625,0.00014,2]
[331397016,1720344638286,-165.48625,0.00014,2]
[331397017,1720344638296,-165.48625,0.00014,2]
[331397018,1720344638306,-165.48625,0.00014,2]
[331397019,1720344638319,-165.48625,0.00014,2]
[331397020,1720344638330,-165.48625,0.00014,2]
[331397021,1720344638340,-151.0,0.00014,2]
[331397022,1720344638351,-151.0,0.00014,2]
[331397023,1720344638361,-151.0,0.00014,2]
[331397024,1720344638372,-151.0,0.00014,2]
[331397025,1720344638382,-155.0,0.00014,2]
[331397026,1720344638392,-151.0,0.00014,2]
[331397027,1720344638402,-151.0,0.00014,2]
[331397028,1720344638412,-151.0,0.00014,2]
[331397029,1720344638422,-151.0,0.00014,2]
[331397030,1720344638432,-151.0,0.00014,2]
[331397031,1720344638441,-151.0,0.00014,2]
[331397032,1720344638451,-151.0,0.00014,2]
[331397033,1720344638460,-151.0,0.00014,2]
[331397034,1720344638470,-151.0,0.00014,2]
[331397035,1720344638480,-7589.81125322,0.00014,2]
[331397036,1720344638489,-161.522641,0.00014,2]
[331397037,1720344638499,-161.522641,0.00014,2]
[331397038,1720344638509,-161.522641,0.00014,2]
[331397039,1720344638519,-151.0,0.00014,2]
[331397040,1720344638529,-151.0,0.00014,2]
[331397041,1720344638539,-151.0,0.00014,2]
[331397042,1720344638548,-161.522641,0.00014,2]
[331397043,1720344638560,-161.522641,0.00014,2]
[331397044,1720344638570,-161.522641,0.00014,2]
[331397045,1720344638580,-151.0,0.00014,2]
[331397046,1720344638590,-151.0,0.00014,2]
[331397047,1720344638599,-151.0,0.00014,2]
[331397048,1720344638609,-204.0,0.00014,2]
[331397049,1720344638619,-1299.0,0.00014,2]
[331397050,1720344638630,-283.0,0.00014,2]
[331397051,1720344638640,-1989.0,0.00014,2]
[331397052,1720344638650,-547.0,0.00014,2]
[331397053,1720344638660,-3250.0,0.00014,2]
[331397054,1720344638670,-216.0,0.00014,2]
[331397055,1720344638680,-216.0,0.00014,2]
[331397056,1720344638690,-216.0,0.00014,2]
[331397057,1720344638700,-216.0,0.00014,2]
[331397058,1720344638709,-216.0,0.00014,2]
[331397059,1720344638720,-216.0,0.00014,2]
[331397060,1720344638730,-216.0,0.00014,2]
[331397061,1720344638739,-216.0,0.00014,2]
[331397062,1720344638749,-216.0,0.00014,2]
[331397063,1720344638759,-216.0,0.00014,2]
[331397064,1720344638770,-230.0,0.00014,2]
[331397065,1720344638780,-160.0,0.00014,2]
[331397066,1720344638790,-1005.8,0.00014,2]
[331397067,1720344638801,-309.54,0.00014,2]
[331397068,1720344638813,-300.0,0.00014,2]
[331397069,1720344638824,-1600.0,0.00014,2]
[331397070,1720344638835,-291.0,0.00014,2]
[331397071,1720344638846,-1659.0,0.00014,2]
[331397072,1720344638856,-5179.0,0.00014,2]
[331397073,1720344638867,-1830.0,0.00014,2]
[331397074,1720344638877,-1199.0,0.00014,2]
[331397075,1720344638888,-600.0,0.00014,2]
[331397076,1720344638898,-182.794539,0.00014058,2]
[331397077,1720344638908,-177.768501,0.00014058,2]
[331397078,1720344638919,-163.89995536,0.00014099,2]
[331397079,1720344638929,-155.11045231,0.00014099,2]
[331397080,1720344638939,-155.0,0.00014099,2]
[331397081,1720344638950,-196.09224429,0.00014099,2]
[331397082,1720344638960,-380.35151486,0.00014099,2]
[331397083,1720344638971,-155.41610123,0.00014099,2]
[331397084,1720344638982,-322.920684,0.00014115,2]
[331397085,1720344638994,-792.759526,0.00014115,2]
[331397086,1720344639010,-184.490051,0.00014115,2]
[331397087,1720344639020,-4705.351979,0.00014115,2]
[331397088,1720344639030,-211.254662,0.00014115,2]
[331397089,1720344639042,-331.305646,0.00014115,2]
[331397090,1720344639053,-715.020188,0.00014115,2]
[331397091,1720344639067,-495.672091,0.00014115,2]
[331397092,1720344639077,-2749.043221,0.00014115,2]
[331397093,1720344639089,-2518.528159,0.00014115,2]
[331397094,1720344639101,-2166.199656,0.00014115,2]
[331397095,1720344639111,-201.65824,0.00014115,2]
[331397096,1720344639122,-12016.91284,0.00014115,2]
[331397097,1720344639133,-169.41225713,0.0001415,2]
[331397098,1720344639144,-150.0,0.00014192,2]
[331397099,1720344639154,-196.6467099,0.000142,2]
[331397100,1720344639164,-158.016445,0.00014285,2]
[331397101,1720344639175,-182.794539,0.00014285,2]
[331397102,1720344639186,-177.768501,0.00014285,2]
[331397103,1720344639198,-179.915158,0.00014285,2]
[331397104,1720344639209,-183.894082,0.00014285,2]
[331397106,1720344639219,-192.977459,0.00014285,2]
[331397108,1720344639229,-322.920684,0.00014285,2]
[331397110,1720344639240,-792.759526,0.00014285,2]
[331397112,1720344639251,-184.490051,0.00014285,2]
[331397114,1720344639262,-4705.351979,0.00014285,2]
[331397116,1720344639273,-211.254662,0.00014285,2]
[331397118,1720344639283,-331.305646,0.00014285,2]
[331397120,1720344639294,-715.020188,0.00014285,2]
[331397122,1720344639303,-495.672091,0.00014285,2]
[331397124,1720344639315,-2749.043221,0.00014285,2]
[331397126,1720344639326,-2518.528159,0.00014285,2]
[331397128,1720344639336,-2166.199656,0.00014285,2]
[331397130,1720344639346,-201.65824,0.00014285,2]
[331397131,1720344639356,-12016.91284,0.00014285,2]
[331397134,1720344639367,-155.0,0.00014393,2]
[331397136,1720344639378,-276.18433692,0.00014393,2]
[331397138,1720344639388,-174.32393277,0.00014393,2]
[331397140,1720344639398,-328.50066625,0.00014393,2]
[331397142,1720344639408,-450.95794745,0.00014393,2]
[331397144,1720344639418,-218.11438004,0.00014393,2]
[331397146,1720344639431,-293.0479214,0.00014393,2]
[331397147,1720344639441,-169.41225713,0.000144,2]
[331397149,1720344639451,-178.05,0.00014475,2]
[331397151,1720344639461,-227.22563372,0.00014499,2]
[331397153,1720344639472,-257.453,0.0001465,2]
[331397156,1720344639483,-257.453,0.0001465,2]
[331397158,1720344639493,-257.453,0.0001465,2]
[331397160,1720344639504,-257.453,0.0001465,2]
[331397162,1720344639513,-257.453,0.0001465,2]
[331397164,1720344639523,-257.453,0.0001465,2]
[331397166,1720344639533,-257.453,0.0001465,2]
[331397168,1720344639543,-257.453,0.0001465,2]
[331397170,1720344639554,-257.453,0.0001465,2]
[331397172,1720344639566,-257.453,0.0001465,2]
[331397174,1720344639577,-169.41225713,0.0001465,2]
[331397176,1720344639587,-155.48,0.00014665,2]
[331397178,1720344639597,-151.0,0.000147,2]
[331397180,1720344639607,-151.0,0.000147,2]
[331397182,1720344639617,-151.0,0.000147,2]
[331397183,1720344639627,-161.522641,0.000147,2]
[331397185,1720344639638,-151.0,0.000147,2]
[331397188,1720344639648,-161.522641,0.000147,2]
[331397189,1720344639658,-151.0,0.000147,2]
[331397191,1720344639669,-150.0,0.000147,2]
[331397194,1720344639680,-150.0,0.000147,2]
[331397196,1720344639691,-174.09807555,0.000147,2]
[331397198,1720344639701,-163.72600369,0.000148,2]
[331397200,1720344639712,-166.47,0.00014811,2]
[331397202,1720344639722,-587.0,0.00014841,2]
[331397204,1720344639733,-200.36448266,0.00014849,2]
[331397206,1720344639744,-163.72600367,0.0001485,2]
[331397208,1720344639755,-185.66455592,0.00014899,2]
[331397210,1720344639765,-155.0,0.00014899,2]
[331397212,1720344639775,-994.0,0.000149,2]
[331397214,1720344639784,-1066.38724535,0.000149,2]
[331397216,1720344639795,-210.95902275,0.000149,2]
[331397218,1720344639805,-210.95902274,0.000149,2]
[331397220,1720344639816,-210.95902274,0.000149,2]
[331397222,1720344639827,-25570.14370771,0.000149,2]
[331397224,1720344639837,-163.72600367,0.000149,2]
[331397226,1720344639847,-169.41225713,0.000149,2]
[331397228,1720344639858,-15126.60567379,0.000149,2]
[331397230,1720344639868,-1547.00613654,0.000149,2]
[331397232,1720344639879,-449.29,0.00014945,2]
[331397234,1720344639890,-167.46,0.0001497,2]
[331397236,1720344639901,-151.0,0.00014986,2]
[331397238,1720344639911,-151.0,0.00014986,2]
[331397240,1720344639921,-151.0,0.00014986,2]
[331397242,1720344639932,-151.0,0.00014986,2]
[331397244,1720344639943,-151.0,0.00014986,2]
[331397246,1720344639954,-186.33053,0.00014986,2]
[331397248,1720344639965,-151.0,0.00014986,2]
[331397250,1720344639975,-186.33053,0.00014986,2]
[331397252,1720344639986,-151.0,0.00014986,2]
[331397254,1720344639997,-151.0,0.00014986,2]
[331397256,1720344640010,-328.12357,0.00014986,2]
[331397258,1720344640020,-151.0,0.00014986,2]
[331397260,1720344640031,-175.080709,0.00014986,2]
[331397262,1720344640041,-328.12357,0.00014986,2]
[331397264,1720344640055,-175.080709,0.00014986,2]
[331397266,1720344640067,-151.0,0.00014986,2]
[331397268,1720344640077,-151.0,0.00014986,2]
[331397270,1720344640089,-151.0,0.00014986,2]